[Event "20th Heraklion IT Open 2017"]
[Site "Heraklion"]
[Date "2017.04.20"]
[Round "5"]
[White "Bras, Emanouel"]
[Black "Mamoulakis, Eleftherios"]
[Result "1-0"]
[ECO "E11"]
[WhiteElo "1898"]
[BlackElo "2117"]
[Annotator "NA"]
[PlyCount "77"]
[EventDate "2017.??.??"]
[EventType "swiss"]
[EventCountry "GRE"]
[SourceTitle "playchess.com"]
[Source "ChessBase"]
[SourceQuality "1"]
[TimeControl "40/5400+30:1800+30"]

1. d4 {[%emt 0:00:00]} Nf6 {[%emt 0:00:12]} 2. c4 {[%emt 0:00:00]} e6 {[%emt 0:00:06]} 3. Nf3 {[%emt 0:00:16]} Bb4+ {[%emt 0:00:22]} 4. Bd2 {[%emt 0:01:54]} c5 {[%emt 0:00:18]} 5. Bxb4 {[%emt 0:02:14]} cxb4 {[%emt 0:00:09]} 6. Nbd2 {[%emt 0:00:29] LiveBook: 147 Games} d5 {[%emt 0:08:24]} 7. cxd5 {[%emt 0:11:51]} exd5 {[%emt 0:00:37]} 8. Qa4+ {[%emt 0:06:23]} Nc6 {[%emt 0:00:09]} 9. Ne5 {[%emt 0:00:42]} Qd6 {[%emt 0:01:42]} 10. e3 {[%emt 0:05:37]} Bd7 {[%emt 0:04:39]} 11. Nxd7 {[%emt 0:04:56]} Nxd7 {[%emt 0:00:08]} 12. Bd3 {[%emt 0:07:06]} O-O {[%emt 0:00:32]} 13. O-O $14 {[%emt 0:01:12]} f5 {[%emt 0:06:37]} 14. f4 {[%emt 0:05:02]} Rae8 {[%emt 0:00:53]} 15. Rfe1 {[%emt 0:01:13]} Nb6 {[%emt 0:13:33]} 16. Qc2 {[%emt 0:01:48]} Rc8 {[%emt 0:01:31]} 17. Bxf5 {[%emt 0:03:07]} Nxd4 {[%emt 0:00:43]} 18. Bxh7+ {[%emt 0:00:22]} Kh8 {[%emt 0:00:02]} 19. Qb1 {[%emt 0:04:46]} Ne6 {[%emt 0:08:59]} 20. Nf3 {[%emt 0:05:59]} Nc4 {[%emt 0:01:08]} 21. Bf5 {[%emt 0:04:23]} Rce8 {[%emt 0:02:56]} 22. Nh4 {[%emt 0:06:57]} Rf6 {[%emt 0:01:30]} 23. b3 {[%emt 0:03:05]} Na3 {[%emt 0:02:09]} 24. Qd1 {[%emt 0:00:36]} Rh6 {[%emt 0:01:43]} 25. g3 {[%emt 0:02:27]} Nb5 {[%emt 0:01:16]} 26. Bg6 {[%emt 0:02:41]} Rxg6 {[%emt 0:06:04]} 27. Nxg6+ {[%emt 0:00:15]} Kg8 {[%emt 0:00:14]} 28. Qh5 {[%emt 0:01:31]} Nc3 {[%emt 0:02:09]} 29. Qh8+ {[%emt 0:02:10]} Kf7 {[%emt 0:00:11]} 30. Ne5+ {[%emt 0:00:21]} Ke7 {[%emt 0:00:59]} 31. Qh4+ {[%emt 0:01:38]} Kf8 {[%emt 0:00:46]} 32. Qh5 {[%emt 0:02:49]} Qc7 {[%emt 0:01:08]} 33. Ng6+ {[%emt 0:03:07]} Kg8 {[%emt 0:00:41]} 34. f5 {[%emt 0:00:45]} Nc5 {[%emt 0:00:32]} 35. f6 {[%emt 0:00:51]} Ne6 {[%emt 0:03:01]} 36. Ne5 {[%emt 0:01:49]} Rd8 {[%emt 0:02:34]} 37. f7+ {[%emt 0:00:28]} Kf8 {[%emt 0:00:11]} 38. Ng6+ {[%emt 0:01:38]} Kxf7 {[%emt 0:00:25]} 39. Qf5+ {[%emt 0:00:36]} 1-0

[Event "20th Heraklion IT Open 2017"]
[Site "Heraklion"]
[Date "2017.04.20"]
[Round "5"]
[White "Pelantakis, Mihail"]
[Black "Friedel, Marcus"]
[Result "0-1"]
[ECO "A11"]
[WhiteElo "1737"]
[BlackElo "2182"]
[Annotator "NA"]
[PlyCount "60"]
[EventDate "2017.??.??"]
[EventType "swiss"]
[EventCountry "GRE"]
[SourceTitle "playchess.com"]
[Source "ChessBase"]
[SourceQuality "1"]
[TimeControl "40/5400+30:1800+30"]

1. c4 {[%emt 0:00:00]} c6 {[%emt 0:00:12]} 2. Nf3 {[%emt 0:00:00]} d5 {[%emt 0:00:13]} 3. e3 {[%emt 0:00:19]} Nf6 {[%emt 0:00:14]} 4. Nc3 {[%emt 0:00:21]} a6 {[%emt 0:00:40]} 5. b3 {[%emt 0:00:32]} Bg4 {[%emt 0:03:51]} 6. d4 {[%emt 0:09:48]} b5 {[%emt 0:00:26]} 7. Qc2 {[%emt 0:00:07] D15: Slav Defence: 4 Nc3 a6 and gambit lines after 4 Nc3 dxc4} (7. a4 bxc4 8. bxc4 Nbd7 9. a5 e5 10. Be2 Bxf3 11. Bxf3 Bb4 12. Bd2 O-O 13. O-O dxc4 14. Qe2 exd4 15. exd4 Bxa5 16. Qxc4 {1-0 (44) Ding,L (2759)-Svidler,P (2741) Shenzhen 2017}) 7... Bxf3 {[%emt 0:06:44]} 8. gxf3 {[%emt 0:00:22]} e6 {[%emt 0:02:56]} 9. Bb2 {[%emt 0:05:45]} g6 {[%emt 0:01:38]} 10. Bd3 $146 {[%emt 0:05:54]} (10. e4 b4 11. Na4 Bh6 12. a3 bxa3 13. Bxa3 dxe4 14. fxe4 Qxd4 {1-0 (34) Bykova,A (2242)-Smirnova,E (2190) Loo 2015}) 10... Nbd7 {[%emt 0:07:51]} 11. Ne2 {[%emt 0:10:07]} Be7 {[%emt 0:11:35]} 12. Ng1 {[%emt 0:09:00]} (12. c5 $14) 12... O-O {[%emt 0:03:08]} 13. f4 {[%emt 0:00:37]} Qa5+ {[%emt 0:11:16]} 14. Bc3 {[%emt 0:01:24]} Bb4 {[%emt 0:00:52]} 15. Bxb4 {[%emt 0:08:16]} Qxb4+ {[%emt 0:00:06]} 16. Qd2 {[%emt 0:00:07]} Qxd2+ {[%emt 0:10:25]} 17. Kxd2 {[%emt 0:00:13]} bxc4 {[%emt 0:00:06]} 18. bxc4 {[%emt 0:00:15]} dxc4 {[%emt 0:00:44]} 19. Bxc4 {[%emt 0:04:10]} Ne4+ {[%emt 0:03:58]} 20. Ke1 {[%emt 0:10:32]} Rfb8 {[%emt 0:02:52]} 21. Bd3 {[%emt 0:02:05]} Ndf6 {[%emt 0:02:34]} 22. f3 {[%emt 0:04:57]} Nc3 {[%emt 0:04:50]} 23. Kd2 {[%emt 0:03:49]} Ncd5 {[%emt 0:00:23]} 24. Rc1 {[%emt 0:06:08]} Rb2+ {[%emt 0:01:59]} 25. Rc2 $19 {[%emt 0:00:22] [#]} (25. Bc2 $17 {is a better defense.}) 25... Rab8 $2 {[%emt 0:00:15]} (25... Rb1 $1 $19 {aiming for ...Rab8.} 26. Rxc6 Ra1) 26. a4 {[%emt 0:05:43]} Rxc2+ {[%emt 0:08:45]} 27. Bxc2 {[%emt 0:00:21]} Rb2 {[%emt 0:00:47]} 28. Kc1 {[%emt 0:00:27]} Ra2 {[%emt 0:01:13]} 29. Bb3 {[%emt 0:01:39]} Ra1+ {[%emt 0:01:30]} 30. Kd2 {[%emt 0:02:41]} Nxe3 {[%emt 0:01:30]} 0-1

[Event "20th Heraklion IT Open 2017"]
[Site "Heraklion"]
[Date "2017.04.20"]
[Round "5"]
[White "Vitsaxakis, Nikolaos"]
[Black "Martorelli, Antonio"]
[Result "1/2-1/2"]
[ECO "A45"]
[WhiteElo "1726"]
[BlackElo "2220"]
[Annotator "NA"]
[PlyCount "89"]
[EventDate "2017.??.??"]
[EventType "swiss"]
[EventCountry "GRE"]
[SourceTitle "playchess.com"]
[Source "ChessBase"]
[SourceQuality "1"]
[TimeControl "40/5400+30:1800+30"]

1. d4 Nf6 {[%emt 0:05:25]} 2. Bg5 {[%emt 0:00:54]} e6 {[%emt 0:00:10]} 3. Nd2 {[%emt 0:00:13]} c5 {[%emt 0:00:17]} 4. e3 {[%emt 0:01:31]} b6 {[%emt 0:00:40]} 5. Ngf3 {[%emt 0:00:22]} Bb7 {[%emt 0:00:17]} 6. Bd3 {[%emt 0:00:33]} Be7 {[%emt 0:00:36]} 7. O-O {[%emt 0:02:00]} d6 {[%emt 0:00:09]} 8. Qe2 {[%emt 0:04:35]} Nbd7 {[%emt 0:00:41]} 9. c3 {[%emt 0:02:10]} O-O {[%emt 0:00:18] A47: 1 d4 Nf6 2 Nf3 b6: Torre, London and Colle Systems} 10. e4 {[%emt 0:01:43]} (10. Ba6 Qc8 11. Bxb7 Qxb7 12. e4 h6 13. Bh4 cxd4 14. cxd4 Rfe8 15. Rac1 Bf8 16. Rc2 Rac8 17. Rfc1 Rxc2 18. Rxc2 {0-1 (64) Alvarez Marquez,J (2398)-Gharamian,T (2624) Lisbon 2017}) 10... Re8 {[%emt 0:05:46]} 11. e5 {[%emt 0:12:13]} Nd5 {[%emt 0:02:15]} 12. Bxe7 {[%emt 0:00:12]} Qxe7 {[%emt 0:00:40]} 13. exd6 $146 {[%emt 0:00:15]} (13. Qe4 Nf8 14. Qg4 cxd4 15. cxd4 Nb4 16. Bb5 Rec8 17. a3 {½-½ (29) Meuer,M-Scheske,A (2030) Germany 1998}) 13... Qxd6 {[%emt 0:01:08]} 14. Qe4 {[%emt 0:17:00]} N7f6 {[%emt 0:02:38]} 15. Qe5 {[%emt 0:02:37]} Qxe5 {[%emt 0:01:24]} 16. dxe5 {[%emt 0:00:04]} Nd7 {[%emt 0:04:43]} 17. Be4 {[%emt 0:08:47]} Rab8 {[%emt 0:03:20]} 18. c4 {[%emt 0:09:08]} Nf4 {[%emt 0:03:04]} 19. Bxb7 {[%emt 0:00:55]} Rxb7 {[%emt 0:00:03]} 20. Ne4 {[%emt 0:00:13]} Rbb8 {[%emt 0:00:46]} 21. Rad1 {[%emt 0:01:28]} Red8 {[%emt 0:03:29]} 22. Rd6 {[%emt 0:01:12]} Kf8 {[%emt 0:07:00]} 23. Rfd1 {[%emt 0:00:44]} Ke7 {[%emt 0:00:11]} 24. b3 {[%emt 0:17:33]} Ng6 {[%emt 0:04:29]} 25. Neg5 {[%emt 0:02:39]} Ndxe5 {[%emt 0:05:50]} 26. Rxd8 {[%emt 0:00:11]} Rxd8 {[%emt 0:00:02]} 27. Rxd8 {[%emt 0:00:10]} Kxd8 {[%emt 0:00:08]} 28. Nxe5 {[%emt 0:00:06]} Nxe5 {[%emt 0:00:10]} 29. f4 {[%emt 0:00:02]} Nd3 {[%emt 0:19:24]} 30. Nxf7+ {[%emt 0:00:07]} Ke7 {[%emt 0:00:05]} 31. Ne5 {[%emt 0:00:13]} Nxe5 {[%emt 0:01:00]} 32. fxe5 {[%emt 0:00:05]} Kf7 {[%emt 0:00:12]} 33. Kf2 {[%emt 0:00:10]} Kg6 {[%emt 0:00:06]} 34. g4 {[%emt 0:00:05]} h5 {[%emt 0:11:23]} 35. Kg3 {[%emt 0:01:20]} hxg4 {[%emt 0:04:27]} 36. Kxg4 {[%emt 0:00:11]} Kh6 {[%emt 0:00:07]} 37. Kh4 {[%emt 0:05:40]} a6 {[%emt 0:02:06]} 38. a3 {[%emt 0:02:49]} a5 {[%emt 0:00:02]} 39. a4 {[%emt 0:00:09]} Kg6 {[%emt 0:07:16]} 40. Kg4 $11 {[%emt 0:00:00]} Kh6 {[%emt 0:01:04]} 41. Kh4 {[%emt 0:00:15]} g6 {[%emt 0:00:57]} 42. Kg4 {[%emt 0:00:02]} g5 {[%emt 0:00:18]} 43. h4 {[%emt 0:00:02]} gxh4 {[%emt 0:01:18]} 44. Kxh4 {[%emt 0:00:02]} Kg6 {[%emt 0:03:16]} 45. Kg4 {[%emt 0:00:06]} 1/2-1/2

[Event "20th Heraklion IT Open 2017"]
[Site "Heraklion"]
[Date "2017.04.20"]
[Round "5"]
[White "Galanakis, Nikos"]
[Black "Maris, Ioannis"]
[Result "0-1"]
[ECO "A15"]
[WhiteElo "1588"]
[BlackElo "1967"]
[Annotator "NA"]
[PlyCount "72"]
[EventDate "2017.??.??"]
[EventType "swiss"]
[EventCountry "GRE"]
[SourceTitle "playchess.com"]
[Source "ChessBase"]
[SourceQuality "1"]
[TimeControl "40/5400+30:1800+30"]

1. c4 {[%emt 0:01:17]} Nf6 {[%emt 0:00:42]} 2. Nf3 {[%emt 0:00:57]} g6 {[%emt 0:01:45]} 3. d4 {[%emt 0:03:21]} Bg7 {[%emt 0:01:19]} 4. Nc3 {[%emt 0:00:38]} O-O {[%emt 0:00:23]} 5. e4 {[%emt 0:00:42]} d6 {[%emt 0:00:06]} 6. h3 {[%emt 0:03:14]} Nc6 {[%emt 0:07:01]} 7. Be3 {[%emt 0:02:51]} Re8 {[%emt 0:08:31]} 8. Be2 {[%emt 0:12:57]} e5 {[%emt 0:00:21]} 9. d5 {[%emt 0:00:42]} Ne7 {[%emt 0:07:12]} 10. c5 {[%emt 0:05:13]} Nh5 {[%emt 0:10:48]} 11. Bb5 {[%emt 0:02:59]} Rf8 {[%emt 0:02:00]} 12. Qd2 {[%emt 0:01:59]} f5 {[%emt 0:01:07]} 13. Bh6 {[%emt 0:05:42]} fxe4 {[%emt 0:11:51]} 14. Bxg7 {[%emt 0:05:35]} Kxg7 {[%emt 0:02:35]} 15. Nxe4 {[%emt 0:02:00]} Nf4 {[%emt 0:00:56]} 16. Bf1 $17 {[%emt 0:14:57]} Bf5 {[%emt 0:12:29]} 17. Nc3 {[%emt 0:14:16]} dxc5 {[%emt 0:05:36]} 18. O-O-O {[%emt 0:06:26]} c6 {[%emt 0:00:45]} 19. d6 {[%emt 0:00:43]} Ned5 {[%emt 0:00:12]} 20. Nxd5 {[%emt 0:00:35]} Nxd5 {[%emt 0:00:39]} 21. Bc4 {[%emt 0:02:24]} Be6 {[%emt 0:06:27]} 22. Ng5 {[%emt 0:02:20]} Bg8 {[%emt 0:00:04]} 23. Ne4 {[%emt 0:01:01]} b5 {[%emt 0:02:37]} 24. Bxd5 {[%emt 0:02:20]} cxd5 {[%emt 0:00:04]} 25. Nc3 {[%emt 0:00:36]} d4 {[%emt 0:01:06]} 26. Ne4 {[%emt 0:00:21]} Bd5 {[%emt 0:01:38]} 27. Nxc5 {[%emt 0:00:39]} Qxd6 {[%emt 0:00:22]} 28. b4 {[%emt 0:01:34]} a5 {[%emt 0:00:17]} 29. Rhe1 {[%emt 0:04:40]} axb4 {[%emt 0:00:31]} 30. Nb3 {[%emt 0:00:24]} Rfc8+ {[%emt 0:04:04]} 31. Kb2 {[%emt 0:00:15]} Rc3 {[%emt 0:01:35]} 32. Ra1 {[%emt 0:00:25]} Bc4 {[%emt 0:06:20]} 33. Qg5 {[%emt 0:00:28]} Re8 {[%emt 0:00:41]} 34. Rad1 {[%emt 0:00:41]} Bxb3 {[%emt 0:00:19]} 35. axb3 {[%emt 0:00:19]} Qd5 {[%emt 0:00:30]} 36. Qxe5+ {[%emt 0:00:29]} Rxe5 {[%emt 0:00:27]} 0-1

[Event "20th Heraklion IT Open 2017"]
[Site "Heraklion"]
[Date "2017.04.20"]
[Round "5"]
[White "Koutsourakis, Ioannis"]
[Black "Fragiadakis, Emanouel"]
[Result "1/2-1/2"]
[ECO "E46"]
[WhiteElo "1543"]
[BlackElo "1827"]
[Annotator "NA"]
[PlyCount "76"]
[EventDate "2017.??.??"]
[EventType "swiss"]
[EventCountry "GRE"]
[SourceTitle "playchess.com"]
[Source "ChessBase"]
[SourceQuality "1"]
[TimeControl "40/5400+30:1800+30"]

1. d4 {[%emt 0:00:00]} Nf6 {[%emt 0:00:25]} 2. c4 {[%emt 0:00:00]} e6 {[%emt 0:00:09]} 3. Nc3 {[%emt 0:00:00]} Bb4 {[%emt 0:00:17]} 4. e3 {[%emt 0:00:00]} O-O {[%emt 0:02:26]} 5. Nge2 {[%emt 0:00:06]} d5 {[%emt 0:00:24]} 6. a3 {[%emt 0:00:40]} Be7 {[%emt 0:00:05]} 7. Ng3 {[%emt 0:01:41]} c6 {[%emt 0:02:34]} 8. Bd3 {[%emt 0:02:32]} dxc4 {[%emt 0:00:13]} 9. Bxc4 {[%emt 0:00:27]} b5 {[%emt 0:13:11]} 10. Bd3 {[%emt 0:03:49]} a6 {[%emt 0:00:30]} 11. O-O {[%emt 0:02:30]} c5 {[%emt 0:07:22]} 12. dxc5 $11 Bxc5 {[%emt 0:00:21]} 13. b4 {[%emt 0:04:23]} Be7 {[%emt 0:01:27]} 14. Bb2 {[%emt 0:02:19]} Bb7 {[%emt 0:04:31]} 15. Nge4 {[%emt 0:11:08]} Nbd7 {[%emt 0:03:48]} 16. Nxf6+ {[%emt 0:02:05]} Nxf6 {[%emt 0:03:07]} 17. Qe2 {[%emt 0:04:44]} Qb6 {[%emt 0:03:13]} 18. Rac1 {[%emt 0:02:16]} Rfd8 {[%emt 0:03:31]} 19. Rfd1 {[%emt 0:02:14]} Rac8 {[%emt 0:01:39]} 20. Kh1 {[%emt 0:07:18]} Qa7 {[%emt 0:13:18]} 21. Nb1 {[%emt 0:09:32]} Qa8 {[%emt 0:03:40]} 22. f3 {[%emt 0:00:45]} Bd5 {[%emt 0:09:14]} 23. Nd2 {[%emt 0:04:12]} Qb8 {[%emt 0:04:24]} 24. Rxc8 {[%emt 0:05:08]} Qxc8 {[%emt 0:00:29]} 25. e4 {[%emt 0:00:58]} Bc6 {[%emt 0:05:49]} 26. Nb3 {[%emt 0:00:50]} Be8 {[%emt 0:02:19]} 27. Qc2 {[%emt 0:08:06]} Qxc2 {[%emt 0:00:57]} 28. Bxc2 {[%emt 0:02:38]} Rxd1+ {[%emt 0:02:57]} 29. Bxd1 {[%emt 0:00:12]} Nd7 {[%emt 0:01:29]} 30. Kg1 {[%emt 0:03:18]} e5 {[%emt 0:03:03]} 31. Bc1 {[%emt 0:01:42]} Nb6 {[%emt 0:03:54]} 32. Kf2 {[%emt 0:02:40]} Bd7 {[%emt 0:00:24]} 33. Be2 {[%emt 0:04:13]} Bc6 {[%emt 0:04:19]} 34. Na5 {[%emt 0:01:27]} Bd7 {[%emt 0:00:50]} 35. Be3 {[%emt 0:00:56]} Bd8 {[%emt 0:00:45]} 36. Nb7 {[%emt 0:00:28]} Bc7 {[%emt 0:00:09]} 37. Nc5 {[%emt 0:00:33]} Bc8 {[%emt 0:00:06]} 38. Ke1 {[%emt 0:01:29]} Kf8 {[%emt 0:00:20]} 1/2-1/2

[Event "20th Heraklion IT Open 2017"]
[Site "Heraklion"]
[Date "2017.04.20"]
[Round "5"]
[White "Kiriakakis, Ioannis"]
[Black "Brokalakis - Gounaris, Christos"]
[Result "0-1"]
[ECO "E40"]
[WhiteElo "1534"]
[BlackElo "1773"]
[Annotator "NA"]
[PlyCount "82"]
[EventDate "2017.??.??"]
[EventType "swiss"]
[EventCountry "GRE"]
[SourceTitle "playchess.com"]
[Source "ChessBase"]
[SourceQuality "1"]
[TimeControl "40/5400+30:1800+30"]

1. d4 {[%emt 0:00:00]} Nf6 {[%emt 0:02:34]} 2. c4 {[%emt 0:00:02]} e6 {[%emt 0:00:12]} 3. Nc3 {[%emt 0:00:07]} Bb4 {[%emt 0:00:22]} 4. e3 {[%emt 0:00:31]} d5 {[%emt 0:00:29]} 5. cxd5 {[%emt 0:03:37]} exd5 {[%emt 0:06:05]} 6. Nge2 {[%emt 0:02:27]} O-O {[%emt 0:00:26]} 7. a3 {[%emt 0:04:31]} Bd6 {[%emt 0:01:56]} 8. Ng3 {[%emt 0:01:20]} Re8 {[%emt 0:02:58]} 9. Bd3 {[%emt 0:03:50]} c6 {[%emt 0:00:54]} 10. O-O {[%emt 0:00:24]} Nbd7 {[%emt 0:17:35]} 11. Bd2 {[%emt 0:14:45]} Nf8 {[%emt 0:09:12]} 12. Qc2 {[%emt 0:02:51]} Bxg3 {[%emt 0:11:05]} 13. hxg3 {[%emt 0:00:29]} Bg4 {[%emt 0:03:50]} 14. b4 {[%emt 0:11:03]} Rc8 {[%emt 0:00:47]} 15. b5 {[%emt 0:00:20]} cxb5 {[%emt 0:13:02]} 16. Bxb5 {[%emt 0:00:09]} Re7 {[%emt 0:00:09]} 17. Qb3 {[%emt 0:06:46]} Bf5 {[%emt 0:02:52]} 18. f3 {[%emt 0:03:49]} a6 {[%emt 0:04:12]} 19. Be2 {[%emt 0:00:19]} Rec7 {[%emt 0:08:20]} 20. Rfc1 {[%emt 0:06:23]} Ne6 {[%emt 0:02:30]} 21. Be1 {[%emt 0:04:31]} Qe7 {[%emt 0:01:41]} 22. Qd1 {[%emt 0:03:22]} Nd8 {[%emt 0:03:16]} 23. Qd2 {[%emt 0:02:32]} h6 {[%emt 0:01:07]} 24. Bf2 {[%emt 0:09:24]} Bh7 {[%emt 0:00:50]} 25. Bd1 {[%emt 0:01:36]} Qd6 {[%emt 0:01:24]} 26. Bb3 {[%emt 0:02:26]} Rc6 {[%emt 0:03:11]} 27. Qb2 {[%emt 0:08:18]} b5 {[%emt 0:00:45]} 28. Ne2 {[%emt 0:03:39]} Nb7 {[%emt 0:01:12]} 29. Rxc6 {[%emt 0:00:49]} Rxc6 {[%emt 0:00:01]} 30. Rc1 {[%emt 0:00:17]} Na5 {[%emt 0:00:09]} 31. a4 {[%emt 0:03:12]} Rxc1+ {[%emt 0:01:05]} 32. Nxc1 {[%emt 0:00:18]} Qb4 {[%emt 0:00:10]} 33. axb5 {[%emt 0:00:45]} axb5 {[%emt 0:00:06]} 34. Qa2 {[%emt 0:00:32]} Qc3 {[%emt 0:01:29]} 35. Ne2 {[%emt 0:01:26]} Qxb3 {[%emt 0:01:00]} 36. Qxa5 {[%emt 0:00:07]} g5 {[%emt 0:00:05]} 37. Nc3 {[%emt 0:01:01]} b4 {[%emt 0:00:50]} 38. Nb5 {[%emt 0:00:31]} Qd1+ {[%emt 0:00:31]} 39. Kh2 {[%emt 0:00:02]} b3 {[%emt 0:00:16]} 40. Qd8+ {[%emt 0:00:00]} Kg7 {[%emt 0:00:11]} 41. Nd6 {[%emt 0:02:22]} b2 {[%emt 0:08:14]} 0-1

[Event "20th Heraklion IT Open 2017"]
[Site "Heraklion"]
[Date "2017.04.20"]
[Round "5"]
[White "Mardoyan Ararat, T  Artur"]
[Black "Papidakis, Georgios"]
[Result "1/2-1/2"]
[ECO "E92"]
[WhiteElo "1502"]
[BlackElo "1618"]
[Annotator "NA"]
[PlyCount "54"]
[EventDate "2017.??.??"]
[EventType "swiss"]
[EventCountry "GRE"]
[SourceTitle "playchess.com"]
[Source "ChessBase"]
[SourceQuality "1"]
[TimeControl "40/5400+30:1800+30"]

1. d4 {[%emt 0:10:56]} Nf6 {[%emt 0:00:04]} 2. Nf3 {[%emt 0:00:06]} g6 {[%emt 0:00:02]} 3. c4 {[%emt 0:00:30]} Bg7 {[%emt 0:00:04]} 4. Nc3 {[%emt 0:00:04]} O-O {[%emt 0:00:10]} 5. e4 {[%emt 0:00:28]} d6 {[%emt 0:00:05]} 6. Be2 {[%emt 0:00:19]} e5 {[%emt 0:00:17]} 7. d5 {[%emt 0:00:13]} a5 {[%emt 0:00:11]} 8. O-O {[%emt 0:00:36]} Na6 {[%emt 0:00:06]} 9. h3 {[%emt 0:00:58]} Nc5 {[%emt 0:00:19]} 10. Qc2 {[%emt 0:00:39]} Ne8 {[%emt 0:08:57]} 11. Ne1 {[%emt 0:08:07]} f5 {[%emt 0:00:26]} 12. f3 {[%emt 0:01:15]} f4 {[%emt 0:00:11]} 13. Nd3 {[%emt 0:00:13]} Nxd3 {[%emt 0:03:29]} 14. Bxd3 {[%emt 0:00:21]} g5 {[%emt 0:04:42]} 15. Nd1 {[%emt 0:07:43]} b6 {[%emt 0:23:28]} 16. Bd2 {[%emt 0:06:05]} h5 {[%emt 0:08:01]} 17. Nf2 {[%emt 0:00:36]} Rf6 {[%emt 0:00:24]} 18. a3 {[%emt 0:08:11]} Rh6 {[%emt 0:09:34]} 19. Be1 {[%emt 0:05:19]} Rh8 {[%emt 0:04:18]} 20. Qd1 {[%emt 0:03:33]} Qf6 {[%emt 0:00:48]} 21. b4 {[%emt 0:13:23]} axb4 {[%emt 0:08:12]} 22. axb4 {[%emt 0:00:33]} Rxa1 {[%emt 0:02:40]} 23. Qxa1 {[%emt 0:00:02]} Qh6 {[%emt 0:01:26]} 24. Qa8 {[%emt 0:01:05]} Bd7 {[%emt 0:00:02]} 25. Qd8 {[%emt 0:00:30]} Ba4 {[%emt 0:08:12]} 26. Qa8 {[%emt 0:00:26]} Bd7 {[%emt 0:00:08]} 27. Qd8 {[%emt 0:00:01]} Ba4 {[%emt 0:00:14]} 1/2-1/2

[Event "20th Heraklion IT Open 2017"]
[Site "Heraklion"]
[Date "2017.04.21"]
[Round "6"]
[White "Wallace, John Paul"]
[Black "Vitsaxakis, Nikolaos"]
[Result "1-0"]
[ECO "C31"]
[WhiteElo "2404"]
[BlackElo "1726"]
[Annotator "ChessBase"]
[PlyCount "57"]
[EventDate "2017.??.??"]
[EventType "swiss"]
[EventCountry "GRE"]
[SourceTitle "playchess.com"]
[Source "ChessBase"]
[SourceQuality "1"]
[TimeControl "40/5400+30:1800+30"]

1. e4 {[%emt 0:00:00]} e5 {[%emt 0:00:05]} 2. f4 {[%emt 0:00:00]} d5 {[%emt 0:00:06]} 3. exd5 {[%emt 0:00:13]} exf4 {[%emt 0:00:06]} 4. Nf3 {[%emt 0:00:10]} Bd6 {[%emt 0:00:15]} 5. d4 {[%emt 0:04:50]} Ne7 {[%emt 0:00:08]} 6. c4 {[%emt 0:00:58]} b6 {[%emt 0:05:56]} 7. Bd3 {[%emt 0:03:39]} O-O {[%emt 0:00:13]} 8. O-O {[%emt 0:00:08]} c6 {[%emt 0:00:17]} 9. dxc6 {[%emt 0:01:40]} Nbxc6 {[%emt 0:01:00]} 10. Nc3 {[%emt 0:00:14]} Bg4 11. Bxh7+ {[%emt 0:02:08]} Kh8 {[%emt 0:03:24]} 12. Be4 {[%emt 0:24:33]} f5 {[%emt 0:12:58]} 13. Bxc6 {[%emt 0:01:27]} Nxc6 {[%emt 0:01:46]} 14. Kh1 {[%emt 0:00:33]} Qe8 {[%emt 0:15:09]} 15. Nb5 {[%emt 0:10:58]} Rd8 {[%emt 0:13:26]} 16. Nxd6 {[%emt 0:03:34]} Rxd6 {[%emt 0:00:05]} 17. d5 {[%emt 0:00:17]} g5 {[%emt 0:00:13]} 18. Qe1 {[%emt 0:04:32]} Bxf3 {[%emt 0:04:01]} 19. gxf3 {[%emt 0:00:27]} Qxe1 {[%emt 0:02:15]} 20. Rxe1 {[%emt 0:00:09]} Nd4 {[%emt 0:00:03]} 21. b3 {[%emt 0:15:39]} Nc2 {[%emt 0:13:10]} 22. Re7 {[%emt 0:07:05]} Kg8 {[%emt 0:00:36]} 23. Bb2 {[%emt 0:00:10]} Rf7 {[%emt 0:00:08]} 24. Re8+ {[%emt 0:01:14]} Kh7 {[%emt 0:07:57]} 25. Rg1 {[%emt 0:00:49]} g4 {[%emt 0:06:36]} 26. fxg4 {[%emt 0:01:42]} f3 {[%emt 0:02:17]} 27. gxf5 {[%emt 0:08:31]} Kh6 {[%emt 0:00:28]} 28. Rh8+ {[%emt 0:00:35]} Rh7 {[%emt 0:00:07]} 29. Bc1+ {[%emt 0:00:07]} 1-0

[Event "20th Heraklion IT Open 2017"]
[Site "Heraklion"]
[Date "2017.04.21"]
[Round "6"]
[White "Sredojevic, Ivan"]
[Black "Lirindzakis, Timotheos"]
[Result "1-0"]
[ECO "C47"]
[WhiteElo "2351"]
[BlackElo "2177"]
[Annotator "ChessBase"]
[PlyCount "79"]
[EventDate "2017.??.??"]
[EventType "swiss"]
[EventCountry "GRE"]
[SourceTitle "playchess.com"]
[Source "ChessBase"]
[SourceQuality "1"]
[TimeControl "40/5400+30:1800+30"]

1. e4 {[%emt 0:00:00]} e5 {[%emt 0:00:16]} 2. Nf3 {[%emt 0:00:00]} Nc6 {[%emt 0:00:11]} 3. Nc3 {[%emt 0:00:00]} Nf6 {[%emt 0:00:14]} 4. a3 {[%emt 0:00:00]} d5 {[%emt 0:00:50]} 5. exd5 {[%emt 0:00:24]} Nxd5 {[%emt 0:00:05]} 6. Bb5 {[%emt 0:00:23]} Nxc3 {[%emt 0:00:39]} 7. bxc3 {[%emt 0:00:02]} Bd6 {[%emt 0:00:46]} 8. O-O {[%emt 0:00:03]} O-O {[%emt 0:00:41]} 9. d4 {[%emt 0:01:48]} exd4 {[%emt 0:01:05]} 10. cxd4 {[%emt 0:00:06]} Bg4 {[%emt 0:01:47]} 11. c3 {[%emt 0:00:42]} Qf6 {[%emt 0:01:28]} 12. Be2 {[%emt 0:04:03]} Rfe8 {[%emt 0:04:06]} 13. h3 {[%emt 0:05:16]} Bd7 {[%emt 0:15:54]} 14. Bd3 {[%emt 0:09:44]} h6 {[%emt 0:02:46]} 15. Rb1 {[%emt 0:01:53]} b6 {[%emt 0:06:57]} 16. c4 {[%emt 0:18:45]} Bf5 {[%emt 0:13:11]} 17. Bb2 {[%emt 0:06:55]} Bxd3 {[%emt 0:01:30]} 18. Qxd3 {[%emt 0:00:02]} Rad8 {[%emt 0:04:47]} 19. Rfe1 {[%emt 0:05:19]} Rxe1+ {[%emt 0:10:39]} 20. Rxe1 {[%emt 0:01:21]} Ne7 {[%emt 0:00:32]} 21. Qc2 {[%emt 0:11:13]} Qf5 {[%emt 0:02:59]} 22. Qc3 {[%emt 0:02:12]} Ng6 {[%emt 0:07:42]} 23. d5 {[%emt 0:01:00]} Bf8 {[%emt 0:00:30]} 24. Nd4 {[%emt 0:00:31]} Qd7 {[%emt 0:01:41]} 25. Nc6 {[%emt 0:00:52]} Re8 {[%emt 0:03:32]} 26. Rxe8 {[%emt 0:05:27]} Qxe8 {[%emt 0:00:02]} 27. Nxa7 {[%emt 0:00:01]} Nf4 {[%emt 0:02:42]} 28. Qe5 {[%emt 0:02:27]} Ne2+ {[%emt 0:04:40]} 29. Kf1 {[%emt 0:00:30]} Qa4 {[%emt 0:00:23]} 30. Kxe2 {[%emt 0:05:24]} Qxa7 {[%emt 0:00:04]} 31. Qe8 {[%emt 0:00:10]} Qa5 {[%emt 0:05:24]} 32. Qb5 {[%emt 0:01:37]} Qa8 {[%emt 0:01:32]} 33. Qd7 {[%emt 0:01:34]} Bd6 {[%emt 0:02:44]} 34. a4 {[%emt 0:00:07]} h5 {[%emt 0:01:21]} 35. g3 {[%emt 0:00:33]} Kf8 {[%emt 0:02:02]} 36. Bc3 {[%emt 0:00:12]} g6 {[%emt 0:00:37]} 37. Kd3 {[%emt 0:00:49]} Kg8 {[%emt 0:00:54]} 38. Bf6 {[%emt 0:02:10]} Kf8 {[%emt 0:00:44]} 39. g4 {[%emt 0:00:56]} hxg4 {[%emt 0:01:20]} 40. hxg4 {[%emt 0:00:00]} 1-0